[Event "Early-Titled-Tuesday-Blitz-October-10-2023"]
[Site "Chess.com"]
[Date "2023.10.10"]
[Round "2"]
[White "Sanan_Sjugirov"]
[Black "Maksimus1998"]
[Result "1-0"]
[WhiteElo "2953"]
[BlackElo "2608"]
[TimeControl "180+1"]
[EndTime "8:17:14 PDT"]
[Termination "Sanan_Sjugirov won by resignation"]

1. d4 {[%clk 0:03:00.9]} 1... Nf6 {[%clk 0:02:56.8]} 2. Nf3 {[%clk 0:02:59.7]}
2... e6 {[%clk 0:02:55.9]} 3. Bf4 {[%clk 0:02:59]} 3... d5 {[%clk 0:02:55.3]} 4.
e3 {[%clk 0:02:59.2]} 4... Bd6 {[%clk 0:02:55]} 5. Nbd2 {[%clk 0:02:58.6]} 5...
O-O {[%clk 0:02:54.3]} 6. c3 {[%clk 0:02:57.6]} 6... Bxf4 {[%clk 0:02:53.4]} 7.
exf4 {[%clk 0:02:58.5]} 7... b6 {[%clk 0:02:53.9]} 8. h4 {[%clk 0:02:57]} 8...
c5 {[%clk 0:02:51.3]} 9. h5 {[%clk 0:02:52.3]} 9... h6 {[%clk 0:02:50.7]} 10. a3
{[%clk 0:02:48.1]} 10... Qd6 {[%clk 0:02:41.4]} 11. g3 {[%clk 0:02:47.7]} 11...
Ba6 {[%clk 0:02:38.3]} 12. Bxa6 {[%clk 0:02:45.2]} 12... Nxa6 {[%clk 0:02:39.2]}
13. Kf1 {[%clk 0:02:42.5]} 13... Nb8 {[%clk 0:02:33.9]} 14. Kg2 {[%clk 0:02:42]}
14... Nc6 {[%clk 0:02:32.2]} 15. Qe2 {[%clk 0:02:40.6]} 15... Rac8 {[%clk
0:02:31]} 16. Qd3 {[%clk 0:02:33]} 16... Rc7 {[%clk 0:02:05]} 17. Rad1 {[%clk
0:02:30.9]} 17... cxd4 {[%clk 0:02:04.2]} 18. Nxd4 {[%clk 0:01:51.6]} 18... Nxd4
{[%clk 0:02:02.6]} 19. Qxd4 {[%clk 0:01:52.5]} 19... Rfc8 {[%clk 0:02:00]} 20.
Qd3 {[%clk 0:01:49.4]} 20... Qc6 {[%clk 0:01:39.9]} 21. Nf3 {[%clk 0:01:46.1]}
21... Ne4 {[%clk 0:01:39.3]} 22. Nd4 {[%clk 0:01:39.2]} 22... Qc5 {[%clk
0:01:25]} 23. g4 {[%clk 0:01:29.9]} 23... Qd6 {[%clk 0:00:52.2]} 24. Qe3 {[%clk
0:01:28.4]} 24... a6 {[%clk 0:00:44.5]} 25. Rhe1 {[%clk 0:01:20]} 25... Qe7
{[%clk 0:00:42.5]} 26. f3 {[%clk 0:01:10.2]} 26... Nd6 {[%clk 0:00:41.4]} 27.
Qe2 {[%clk 0:00:39.6]} 27... b5 {[%clk 0:00:32.3]} 28. f5 {[%clk 0:00:39.1]}
28... Nc4 {[%clk 0:00:12.8]} 29. fxe6 {[%clk 0:00:37.8]} 29... fxe6 {[%clk
0:00:12.9]} 30. Nxe6 {[%clk 0:00:29.2]} 30... Rc6 {[%clk 0:00:12.7]} 31. Nf4
{[%clk 0:00:23.5]} 1-0

[Event "Early-Titled-Tuesday-Blitz-October-10-2023"]
[Site "Chess.com"]
[Date "2023.10.10"]
[Round "2"]
[White "zimmm36"]
[Black "pirulillo"]
[Result "1-0"]
[WhiteElo "2671"]
[BlackElo "2351"]
[TimeControl "180+1"]
[EndTime "8:17:19 PDT"]
[Termination "zimmm36 won on time"]

1. e4 {[%clk 0:03:00.9]} 1... c5 {[%clk 0:03:00.9]} 2. Nf3 {[%clk 0:03:01]} 2...
e6 {[%clk 0:02:58.6]} 3. d4 {[%clk 0:03:01.4]} 3... cxd4 {[%clk 0:02:57.1]} 4.
Nxd4 {[%clk 0:03:02.3]} 4... Nf6 {[%clk 0:02:57.2]} 5. Nc3 {[%clk 0:03:01.8]}
5... Nc6 {[%clk 0:02:57.4]} 6. Be2 {[%clk 0:03:00]} 6... d6 {[%clk 0:02:56.9]}
7. Be3 {[%clk 0:02:59.2]} 7... Be7 {[%clk 0:02:56.8]} 8. Qd2 {[%clk 0:02:59.5]}
8... O-O {[%clk 0:02:56.7]} 9. O-O-O {[%clk 0:02:59.7]} 9... a6 {[%clk
0:02:55.3]} 10. f4 {[%clk 0:02:59.7]} 10... Qc7 {[%clk 0:02:53.9]} 11. Nxc6
{[%clk 0:02:13.3]} 11... Qxc6 {[%clk 0:02:51.2]} 12. Bf3 {[%clk 0:02:13.4]}
12... e5 {[%clk 0:02:50.3]} 13. f5 {[%clk 0:02:13.4]} 13... b5 {[%clk
0:02:49.4]} 14. a3 {[%clk 0:02:03.9]} 14... a5 {[%clk 0:02:38.8]} 15. Nd5 {[%clk
0:02:03.9]} 15... Nxd5 {[%clk 0:02:34.6]} 16. Qxd5 {[%clk 0:02:04.8]} 16... Qxd5
{[%clk 0:02:33.4]} 17. Rxd5 {[%clk 0:02:04.4]} 17... Bd7 {[%clk 0:02:26.2]} 18.
Rhd1 {[%clk 0:01:59]} 18... Bc6 {[%clk 0:02:22.1]} 19. Rxd6 {[%clk 0:01:56.7]}
19... Bxd6 {[%clk 0:02:20.1]} 20. Rxd6 {[%clk 0:01:57.6]} 20... Rac8 {[%clk
0:02:16.8]} 21. Bb6 {[%clk 0:01:57.3]} 21... a4 {[%clk 0:02:15]} 22. c3 {[%clk
0:01:57.6]} 22... f6 {[%clk 0:02:02.6]} 23. Kd2 {[%clk 0:01:55.3]} 23... Rf7
{[%clk 0:01:52.9]} 24. Ke3 {[%clk 0:01:37.7]} 24... Rd7 {[%clk 0:01:49.6]} 25.
Re6 {[%clk 0:01:37.6]} 25... Kf7 {[%clk 0:01:46.8]} 26. Ba5 {[%clk 0:01:26.2]}
26... Ra7 {[%clk 0:01:23.1]} 27. Bb4 {[%clk 0:01:23.9]} 27... Rd7 {[%clk
0:01:14.4]} 28. h4 {[%clk 0:01:09.2]} 28... Rb7 {[%clk 0:00:59.5]} 29. g4 {[%clk
0:00:59.6]} 29... Rbc7 {[%clk 0:00:51.7]} 30. g5 {[%clk 0:00:58.2]} 30... Bd7
{[%clk 0:00:34.5]} 31. Bh5+ {[%clk 0:00:49.5]} 31... Kg8 {[%clk 0:00:34.4]} 32.
gxf6 {[%clk 0:00:49.8]} 32... Bxe6 {[%clk 0:00:33.2]} 33. fxe6 {[%clk
0:00:50.7]} 33... gxf6 {[%clk 0:00:32.2]} 34. e7 {[%clk 0:00:50.5]} 34... Rd7
{[%clk 0:00:14.6]} 35. Bg4 {[%clk 0:00:42.3]} 35... Kg7 {[%clk 0:00:10.7]} 36.
Bxd7 {[%clk 0:00:41.8]} 36... Rb8 {[%clk 0:00:05.7]} 37. e8=Q {[%clk 0:00:42.7]}
1-0

[Event "Early-Titled-Tuesday-Blitz-October-10-2023"]
[Site "Chess.com"]
[Date "2023.10.10"]
[Round "2"]
[White "Fandorine"]
[Black "fu24"]
[Result "0-1"]
[WhiteElo "2915"]
[BlackElo "2622"]
[TimeControl "180+1"]
[EndTime "8:17:24 PDT"]
[Termination "fu24 won by resignation"]

1. b3 {[%clk 0:03:00.9]} 1... b6 {[%clk 0:02:58.7]} 2. e4 {[%clk 0:02:55.5]}
2... Bb7 {[%clk 0:02:59.3]} 3. Nc3 {[%clk 0:02:54.8]} 3... e6 {[%clk 0:02:55.7]}
4. Bb2 {[%clk 0:02:48.2]} 4... d5 {[%clk 0:02:55.6]} 5. exd5 {[%clk 0:02:39.3]}
5... exd5 {[%clk 0:02:56.5]} 6. Qe2+ {[%clk 0:02:39.6]} 6... Qe7 {[%clk
0:02:55.5]} 7. O-O-O {[%clk 0:02:23.7]} 7... Qxe2 {[%clk 0:02:55.4]} 8. Ngxe2
{[%clk 0:02:22]} 8... Nd7 {[%clk 0:02:55.9]} 9. Nb5 {[%clk 0:02:21]} 9... Kd8
{[%clk 0:02:45.3]} 10. d4 {[%clk 0:02:13.4]} 10... Ngf6 {[%clk 0:02:41.4]} 11.
f3 {[%clk 0:02:06.5]} 11... c6 {[%clk 0:02:36.3]} 12. Nbc3 {[%clk 0:01:57.1]}
12... Bd6 {[%clk 0:02:36.7]} 13. g4 {[%clk 0:01:55.4]} 13... Kc7 {[%clk
0:02:30.7]} 14. Ng3 {[%clk 0:01:55.5]} 14... g6 {[%clk 0:02:23.2]} 15. Kb1
{[%clk 0:01:34.1]} 15... h5 {[%clk 0:02:08.4]} 16. g5 {[%clk 0:01:25.9]} 16...
h4 {[%clk 0:02:08.7]} 17. Nge2 {[%clk 0:01:23.8]} 17... Nh5 {[%clk 0:02:06.4]}
18. Bh3 {[%clk 0:01:23]} 18... Rae8 {[%clk 0:02:04]} 19. Bc1 {[%clk 0:01:18]}
19... b5 {[%clk 0:01:56.6]} 20. Rde1 {[%clk 0:01:10.2]} 20... Bc8 {[%clk
0:01:43.7]} 21. Bg4 {[%clk 0:01:07.7]} 21... Nf8 {[%clk 0:01:41.2]} 22. Bxh5
{[%clk 0:01:03.1]} 22... Rxh5 {[%clk 0:01:40.9]} 23. Nf4 {[%clk 0:00:56.8]}
23... Rxe1 {[%clk 0:01:30.2]} 24. Rxe1 {[%clk 0:00:53]} 24... Rxg5 {[%clk
0:01:14.3]} 25. Nd3 {[%clk 0:00:42.5]} 25... Rg2 {[%clk 0:01:08.9]} 26. Bf4
{[%clk 0:00:42.4]} 26... Bf5 {[%clk 0:01:02]} 27. Re7+ {[%clk 0:00:40.4]} 27...
Nd7 {[%clk 0:01:01.7]} 28. Rxf7 {[%clk 0:00:26.4]} 28... Bxf4 {[%clk 0:00:54.2]}
29. Nxf4 {[%clk 0:00:25.4]} 29... Rxh2 {[%clk 0:00:54.4]} 30. Nce2 {[%clk
0:00:23]} 30... Rf2 {[%clk 0:00:48.5]} 31. Kb2 {[%clk 0:00:18.5]} 31... h3
{[%clk 0:00:42.4]} 32. Ng3 {[%clk 0:00:18.6]} 32... Rxf3 {[%clk 0:00:36.1]} 33.
Ne6+ {[%clk 0:00:06.9]} 33... Kd6 {[%clk 0:00:33.4]} 34. Nc5 {[%clk 0:00:05]}
34... Rxg3 {[%clk 0:00:26.2]} 0-1

[Event "Early-Titled-Tuesday-Blitz-October-10-2023"]
[Site "Chess.com"]
[Date "2023.10.10"]
[Round "2"]
[White "Iball95"]
[Black "JoliyRoger"]
[Result "1-0"]
[WhiteElo "2777"]
[BlackElo "2466"]
[TimeControl "180+1"]
[EndTime "8:17:25 PDT"]
[Termination "Iball95 won on time"]

1. e4 {[%clk 0:03:00]} 1... c6 {[%clk 0:02:59.5]} 2. d4 {[%clk 0:03:00]} 2... d5
{[%clk 0:03:00.4]} 3. exd5 {[%clk 0:03:00.9]} 3... cxd5 {[%clk 0:03:00.8]} 4. c4
{[%clk 0:03:01.8]} 4... Nf6 {[%clk 0:03:00.3]} 5. Nc3 {[%clk 0:03:02.5]} 5... e6
{[%clk 0:03:00.7]} 6. c5 {[%clk 0:03:03.1]} 6... Nc6 {[%clk 0:02:58.5]} 7. Bb5
{[%clk 0:03:02.4]} 7... Bd7 {[%clk 0:02:54.5]} 8. Nf3 {[%clk 0:03:03]} 8... Ne4
{[%clk 0:02:40.9]} 9. Qd3 {[%clk 0:03:01.1]} 9... f5 {[%clk 0:02:36.9]} 10. O-O
{[%clk 0:03:00.9]} 10... Be7 {[%clk 0:02:36.2]} 11. Bxc6 {[%clk 0:02:59]} 11...
Bxc6 {[%clk 0:02:29.2]} 12. Ne5 {[%clk 0:02:59.7]} 12... O-O {[%clk 0:02:29.2]}
13. f3 {[%clk 0:02:54.8]} 13... Nxc3 {[%clk 0:02:23.9]} 14. Qxc3 {[%clk
0:02:55.7]} 14... Bf6 {[%clk 0:02:23.5]} 15. Re1 {[%clk 0:02:51.4]} 15... Rc8
{[%clk 0:02:23.9]} 16. b4 {[%clk 0:02:50.4]} 16... Qe8 {[%clk 0:02:15.2]} 17.
Bf4 {[%clk 0:02:50.4]} 17... Bb5 {[%clk 0:02:12]} 18. Qb3 {[%clk 0:02:42.7]}
18... Ba4 {[%clk 0:02:11.3]} 19. Qb2 {[%clk 0:02:43]} 19... Bb5 {[%clk
0:02:11.8]} 20. Bg3 {[%clk 0:02:41.7]} 20... g5 {[%clk 0:02:06.4]} 21. a4 {[%clk
0:02:32.2]} 21... Bxa4 {[%clk 0:01:39.6]} 22. Qa3 {[%clk 0:02:32.3]} 22... Bc6
{[%clk 0:01:26.6]} 23. Qxa7 {[%clk 0:02:31.6]} 23... f4 {[%clk 0:01:27.3]} 24.
Bf2 {[%clk 0:02:31.7]} 24... Ra8 {[%clk 0:01:19.4]} 25. Qb6 {[%clk 0:02:09.3]}
25... Rxa1 {[%clk 0:01:16.7]} 26. Rxa1 {[%clk 0:02:10.2]} 26... Bxe5 {[%clk
0:01:00.8]} 27. dxe5 {[%clk 0:02:11.1]} 27... Qd8 {[%clk 0:00:38.4]} 28. Qa7
{[%clk 0:01:59]} 28... h5 {[%clk 0:00:25.4]} 29. b5 {[%clk 0:01:58.3]} 29...
Bxb5 {[%clk 0:00:25.3]} 30. Qxb7 {[%clk 0:01:59.2]} 30... Qd7 {[%clk 0:00:21.9]}
31. Qb6 {[%clk 0:01:59.6]} 31... Qc6 {[%clk 0:00:20.8]} 32. Qa5 {[%clk
0:01:54.2]} 32... Rc8 {[%clk 0:00:20.5]} 33. Rb1 {[%clk 0:01:53.6]} 33... Rb8
{[%clk 0:00:18.4]} 34. h3 {[%clk 0:01:44.9]} 34... Kf7 {[%clk 0:00:18]} 35. Qc3
{[%clk 0:01:38.4]} 35... Rb7 {[%clk 0:00:15.6]} 36. Qc2 {[%clk 0:01:34.5]} 36...
Kg7 {[%clk 0:00:15.4]} 37. h4 {[%clk 0:01:33.2]} 37... Bc4 {[%clk 0:00:11.2]}
38. hxg5 {[%clk 0:01:28.9]} 38... Rxb1+ {[%clk 0:00:08.5]} 39. Qxb1 {[%clk
0:01:26.8]} 39... Qb5 {[%clk 0:00:09.1]} 40. Qc1 {[%clk 0:01:27.7]} 40... Qb3
{[%clk 0:00:04.3]} 41. Qxf4 {[%clk 0:01:27.1]} 41... Qd1+ {[%clk 0:00:04.9]} 42.
Kh2 {[%clk 0:01:27.8]} 42... Qd3 {[%clk 0:00:02.2]} 43. Qf6+ {[%clk 0:01:27.5]}
43... Kg8 {[%clk 0:00:03.1]} 44. Qxe6+ {[%clk 0:01:27.5]} 44... Kg7 {[%clk
0:00:02.7]} 45. Qf6+ {[%clk 0:01:27.5]} 45... Kg8 {[%clk 0:00:02.8]} 46. e6
{[%clk 0:01:26.5]} 46... Qh7 {[%clk 0:00:02.2]} 47. Bd4 {[%clk 0:01:24.9]} 47...
Bb5 {[%clk 0:00:01.5]} 48. e7 {[%clk 0:01:23.8]} 48... Be8 {[%clk 0:00:01.7]}
49. c6 {[%clk 0:01:22.8]} 1-0

[Event "Early-Titled-Tuesday-Blitz-October-10-2023"]
[Site "Chess.com"]
[Date "2023.10.10"]
[Round "2"]
[White "kritipatel"]
[Black "Flaccidmoves"]
[Result "0-1"]
[WhiteElo "2116"]
[BlackElo "2448"]
[TimeControl "180+1"]
[EndTime "8:17:25 PDT"]
[Termination "Flaccidmoves won by checkmate"]

1. e4 {[%clk 0:03:00.9]} 1... g6 {[%clk 0:03:00.9]} 2. d4 {[%clk 0:03:00.8]}
2... Bg7 {[%clk 0:03:00.6]} 3. f4 {[%clk 0:02:59]} 3... d6 {[%clk 0:03:00.6]} 4.
Nf3 {[%clk 0:02:59.1]} 4... Nf6 {[%clk 0:03:00.4]} 5. Bd3 {[%clk 0:02:58.4]}
5... c5 {[%clk 0:02:59.8]} 6. c3 {[%clk 0:02:53.7]} 6... O-O {[%clk 0:02:55.8]}
7. O-O {[%clk 0:02:52.1]} 7... cxd4 {[%clk 0:02:47.8]} 8. cxd4 {[%clk
0:02:50.4]} 8... Nc6 {[%clk 0:02:48.2]} 9. Kh1 {[%clk 0:02:41.8]} 9... Bg4
{[%clk 0:02:46.4]} 10. Be3 {[%clk 0:02:38.2]} 10... Nb4 {[%clk 0:02:39]} 11. Nc3
{[%clk 0:02:31.7]} 11... Nxd3 {[%clk 0:02:38]} 12. Qxd3 {[%clk 0:02:32.6]} 12...
d5 {[%clk 0:02:27.1]} 13. e5 {[%clk 0:02:24.9]} 13... Bf5 {[%clk 0:02:25]} 14.
Qb5 {[%clk 0:02:19.4]} 14... Ne4 {[%clk 0:02:19.5]} 15. Nxd5 {[%clk 0:02:09.7]}
15... a6 {[%clk 0:02:16.5]} 16. Qb3 {[%clk 0:02:04.4]} 16... Be6 {[%clk
0:02:15.9]} 17. Qxb7 {[%clk 0:01:45.4]} 17... Bxd5 {[%clk 0:02:15.2]} 18. Qb4
{[%clk 0:01:45.1]} 18... Rb8 {[%clk 0:02:14.7]} 19. Qa3 {[%clk 0:01:43.1]} 19...
Qd7 {[%clk 0:02:00.3]} 20. Rac1 {[%clk 0:01:35.4]} 20... Rfc8 {[%clk 0:01:57.9]}
21. Qxa6 {[%clk 0:01:30.9]} 21... Ra8 {[%clk 0:01:18.7]} 22. Rxc8+ {[%clk
0:01:24.9]} 22... Qxc8 {[%clk 0:01:19.6]} 23. Qb6 {[%clk 0:01:07.6]} 23... Rxa2
{[%clk 0:00:36.6]} 24. Rc1 {[%clk 0:01:03.7]} 24... Qa8 {[%clk 0:00:37.1]} 25.
b4 {[%clk 0:00:45.3]} 25... e6 {[%clk 0:00:34.8]} 26. b5 {[%clk 0:00:44.8]}
26... Ra1 {[%clk 0:00:32.4]} 27. Qc7 {[%clk 0:00:44.1]} 27... Rxc1+ {[%clk
0:00:31.8]} 28. Qxc1 {[%clk 0:00:45]} 28... Bf8 {[%clk 0:00:31.6]} 29. b6 {[%clk
0:00:44.4]} 29... Qb7 {[%clk 0:00:31.5]} 30. Qb2 {[%clk 0:00:36.5]} 30... Be7
{[%clk 0:00:30.6]} 31. Ne1 {[%clk 0:00:36.6]} 31... Bd8 {[%clk 0:00:29.8]} 32.
Qb5 {[%clk 0:00:24.7]} 32... Bc6 {[%clk 0:00:26]} 33. Qb4 {[%clk 0:00:20.1]}
33... Qxb6 {[%clk 0:00:25.1]} 34. Qa3 {[%clk 0:00:18]} 34... Bd5 {[%clk
0:00:23.7]} 35. Nf3 {[%clk 0:00:17.5]} 35... Qb1+ {[%clk 0:00:23.2]} 36. Bg1
{[%clk 0:00:16.9]} 36... Nf2# {[%clk 0:00:22.9]} 0-1

[Event "Early-Titled-Tuesday-Blitz-October-10-2023"]
[Site "Chess.com"]
[Date "2023.10.10"]
[Round "2"]
[White "GMBenjaminBok"]
[Black "NovoselovRoman"]
[Result "1-0"]
[WhiteElo "3014"]
[BlackElo "2624"]
[TimeControl "180+1"]
[EndTime "8:17:26 PDT"]
[Termination "GMBenjaminBok won by resignation"]

1. d4 {[%clk 0:03:00.9]} 1... d5 {[%clk 0:02:52.9]} 2. c4 {[%clk 0:03:00.5]}
2... e6 {[%clk 0:02:51]} 3. Nc3 {[%clk 0:03:00.5]} 3... Nf6 {[%clk 0:02:50.4]}
4. cxd5 {[%clk 0:03:00.9]} 4... exd5 {[%clk 0:02:49.4]} 5. Bg5 {[%clk 0:03:01]}
5... Be7 {[%clk 0:02:49.1]} 6. e3 {[%clk 0:03:01.6]} 6... Nc6 {[%clk 0:02:39.5]}
7. Bd3 {[%clk 0:02:49.1]} 7... Nd7 {[%clk 0:02:38.3]} 8. Bf4 {[%clk 0:02:43.3]}
8... Nb6 {[%clk 0:02:34.3]} 9. Rc1 {[%clk 0:02:39.8]} 9... a6 {[%clk 0:02:33.4]}
10. h3 {[%clk 0:02:33.2]} 10... Be6 {[%clk 0:02:32.1]} 11. Nf3 {[%clk
0:02:31.5]} 11... Bd6 {[%clk 0:02:31.9]} 12. Bxd6 {[%clk 0:02:28]} 12... Qxd6
{[%clk 0:02:32.8]} 13. O-O {[%clk 0:02:28.3]} 13... h6 {[%clk 0:02:31.7]} 14.
Ne2 {[%clk 0:02:24.7]} 14... O-O {[%clk 0:02:27.9]} 15. a3 {[%clk 0:02:22.7]}
15... Na5 {[%clk 0:02:23.8]} 16. Nf4 {[%clk 0:02:17]} 16... Nac4 {[%clk
0:02:22.1]} 17. Qc2 {[%clk 0:02:12.2]} 17... Bd7 {[%clk 0:02:16.3]} 18. b3
{[%clk 0:01:38.1]} 18... Nxa3 {[%clk 0:02:14.4]} 19. Qxc7 {[%clk 0:01:38.5]}
19... Qxc7 {[%clk 0:02:06.2]} 20. Rxc7 {[%clk 0:01:39.4]} 20... Bc6 {[%clk
0:02:03.3]} 21. Ne5 {[%clk 0:01:34.9]} 21... Rac8 {[%clk 0:02:00.8]} 22. Re7
{[%clk 0:01:20.8]} 22... Nb5 {[%clk 0:01:32.4]} 23. Nxc6 {[%clk 0:01:13.8]}
23... bxc6 {[%clk 0:01:22.6]} 24. Ra1 {[%clk 0:01:12.9]} 24... Ra8 {[%clk
0:01:19.3]} 25. Rb7 {[%clk 0:01:10.2]} 25... Rfb8 {[%clk 0:01:09.2]} 26. Rxb8+
{[%clk 0:01:10]} 26... Rxb8 {[%clk 0:01:10.1]} 27. Rxa6 {[%clk 0:01:10.3]} 27...
Nc7 {[%clk 0:00:43.6]} 28. Ra7 {[%clk 0:01:08.5]} 28... Ne8 {[%clk 0:00:38.4]}
29. Ba6 {[%clk 0:00:55.3]} 29... Nd6 {[%clk 0:00:30.9]} 30. Nd3 {[%clk
0:00:54.9]} 30... Nbc8 {[%clk 0:00:28.7]} 31. Rc7 {[%clk 0:00:50.2]} 31... Rxb3
{[%clk 0:00:22]} 32. Rxc6 {[%clk 0:00:47.1]} 32... Rb6 {[%clk 0:00:15.4]} 33.
Rxc8+ {[%clk 0:00:44.7]} 33... Nxc8 {[%clk 0:00:15.1]} 34. Bxc8 {[%clk
0:00:45.6]} 34... Rb1+ {[%clk 0:00:14.9]} 35. Kh2 {[%clk 0:00:45.6]} 35... Rb3
{[%clk 0:00:13.5]} 36. Nf4 {[%clk 0:00:45.1]} 36... Rb2 {[%clk 0:00:12.2]} 37.
Kg3 {[%clk 0:00:44.5]} 37... Rb5 {[%clk 0:00:12.2]} 38. Bd7 {[%clk 0:00:43.1]}
38... Ra5 {[%clk 0:00:11.8]} 39. Bc6 {[%clk 0:00:42.4]} 1-0

[Event "Early-Titled-Tuesday-Blitz-October-10-2023"]
[Site "Chess.com"]
[Date "2023.10.10"]
[Round "2"]
[White "boasovietica"]
[Black "ActorXu"]
[Result "0-1"]
[WhiteElo "2524"]
[BlackElo "2734"]
[TimeControl "180+1"]
[EndTime "8:17:31 PDT"]
[Termination "ActorXu won by resignation"]

1. e4 {[%clk 0:02:59.3]} 1... c5 {[%clk 0:02:59.3]} 2. Nf3 {[%clk 0:02:59.1]}
2... Nc6 {[%clk 0:02:59.9]} 3. Nc3 {[%clk 0:02:58.3]} 3... e6 {[%clk 0:02:58]}
4. d4 {[%clk 0:02:55.4]} 4... cxd4 {[%clk 0:02:58.5]} 5. Nxd4 {[%clk 0:02:56.1]}
5... Nf6 {[%clk 0:02:59.3]} 6. Nb3 {[%clk 0:02:51.7]} 6... Bb4 {[%clk
0:02:58.3]} 7. Bd3 {[%clk 0:02:48]} 7... d5 {[%clk 0:02:57.3]} 8. exd5 {[%clk
0:02:48.9]} 8... Nxd5 {[%clk 0:02:57.1]} 9. Bd2 {[%clk 0:02:49.2]} 9... Nxc3
{[%clk 0:02:53.6]} 10. bxc3 {[%clk 0:02:48.5]} 10... Be7 {[%clk 0:02:54.2]} 11.
O-O {[%clk 0:02:44.9]} 11... O-O {[%clk 0:02:54.1]} 12. Rb1 {[%clk 0:02:41.7]}
12... e5 {[%clk 0:02:53.7]} 13. f4 {[%clk 0:02:35.1]} 13... Be6 {[%clk 0:02:47]}
14. Qe2 {[%clk 0:02:19.6]} 14... exf4 {[%clk 0:02:40.5]} 15. Bxf4 {[%clk
0:02:13.4]} 15... Re8 {[%clk 0:02:40.2]} 16. Kh1 {[%clk 0:02:11.1]} 16... Bf6
{[%clk 0:02:38]} 17. Qd2 {[%clk 0:02:02.1]} 17... Ne5 {[%clk 0:02:31]} 18. Nd4
{[%clk 0:01:57.3]} 18... Bxa2 {[%clk 0:02:21.3]} 19. Rxb7 {[%clk 0:01:45.7]}
19... Bd5 {[%clk 0:02:18.7]} 20. Bxe5 {[%clk 0:01:20.6]} 20... Bxe5 {[%clk
0:02:06.4]} 21. Rb5 {[%clk 0:01:12.5]} 21... Qh4 {[%clk 0:01:54.4]} 22. Nf3
{[%clk 0:01:05]} 22... Bxf3 {[%clk 0:01:54.1]} 23. gxf3 {[%clk 0:01:05.3]} 23...
a5 {[%clk 0:01:33.2]} 24. f4 {[%clk 0:00:59.3]} 24... Bf6 {[%clk 0:01:33.2]} 25.
Qg2 {[%clk 0:00:52.1]} 25... Bxc3 {[%clk 0:01:25]} 26. Be4 {[%clk 0:00:45.1]}
26... Rad8 {[%clk 0:01:15.6]} 27. Rb3 {[%clk 0:00:35.4]} 27... Rd2 {[%clk
0:01:11.3]} 28. Qg3 {[%clk 0:00:21.1]} 28... Qxg3 {[%clk 0:01:11.1]} 29. hxg3
{[%clk 0:00:22]} 29... g6 {[%clk 0:00:54.8]} 30. Bd3 {[%clk 0:00:20.3]} 30...
Bf6 {[%clk 0:00:51.7]} 31. Rb7 {[%clk 0:00:17.3]} 31... Re3 {[%clk 0:00:46.9]}
32. Bc4 {[%clk 0:00:14.9]} 32... Rxg3 {[%clk 0:00:44.8]} 33. Bxf7+ {[%clk
0:00:07.9]} 33... Kh8 {[%clk 0:00:42]} 34. Be6 {[%clk 0:00:02.8]} 34... Rgg2
{[%clk 0:00:34.2]} 35. Re1 {[%clk 0:00:02.7]} 35... Rh2+ {[%clk 0:00:29.7]} 0-1

[Event "Early-Titled-Tuesday-Blitz-October-10-2023"]
[Site "Chess.com"]
[Date "2023.10.10"]
[Round "2"]
[White "gueraumasague"]
[Black "Virgo15"]
[Result "0-1"]
[WhiteElo "2525"]
[BlackElo "2742"]
[TimeControl "180+1"]
[EndTime "8:17:34 PDT"]
[Termination "Virgo15 won by checkmate"]

1. e4 {[%clk 0:03:00.9]} 1... e6 {[%clk 0:02:59.7]} 2. d4 {[%clk 0:02:59.8]}
2... d5 {[%clk 0:03:00.4]} 3. Bd3 {[%clk 0:02:53.4]} 3... c5 {[%clk 0:02:58.7]}
4. dxc5 {[%clk 0:02:50]} 4... Bxc5 {[%clk 0:02:56.4]} 5. exd5 {[%clk 0:02:42]}
5... exd5 {[%clk 0:02:56.8]} 6. Nf3 {[%clk 0:02:42.2]} 6... Nf6 {[%clk 0:02:57]}
7. O-O {[%clk 0:02:42.8]} 7... O-O {[%clk 0:02:57.6]} 8. Bg5 {[%clk 0:02:42.8]}
8... h6 {[%clk 0:02:56]} 9. Bh4 {[%clk 0:02:42.5]} 9... g5 {[%clk 0:02:56.2]}
10. Bg3 {[%clk 0:02:42.7]} 10... Ne4 {[%clk 0:02:56.4]} 11. Nc3 {[%clk
0:02:36.7]} 11... f5 {[%clk 0:02:49.5]} 12. Bxb8 {[%clk 0:01:28.5]} 12... Rxb8
{[%clk 0:02:48.1]} 13. Be2 {[%clk 0:01:23.2]} 13... Be6 {[%clk 0:02:44.9]} 14.
Nd4 {[%clk 0:01:23]} 14... Nxc3 {[%clk 0:02:27.3]} 15. bxc3 {[%clk 0:01:09.1]}
15... Bd7 {[%clk 0:02:02.4]} 16. Re1 {[%clk 0:01:08.6]} 16... Qf6 {[%clk
0:01:58.7]} 17. Bf3 {[%clk 0:01:07.3]} 17... Bc6 {[%clk 0:01:58.5]} 18. Ne6
{[%clk 0:00:55.7]} 18... Bb6 {[%clk 0:01:39.7]} 19. Nxf8 {[%clk 0:00:49.9]}
19... Rxf8 {[%clk 0:01:40.6]} 20. Bxd5+ {[%clk 0:00:50.2]} 20... Kg7 {[%clk
0:01:41.1]} 21. Re6 {[%clk 0:00:36.5]} 21... Qxc3 {[%clk 0:01:41.1]} 22. Bxc6
{[%clk 0:00:23.2]} 22... bxc6 {[%clk 0:01:26.2]} 23. Rb1 {[%clk 0:00:23.5]}
23... Qc5 {[%clk 0:01:16]} 24. Qh5 {[%clk 0:00:15.5]} 24... Rf6 {[%clk
0:00:59.6]} 25. Rxf6 {[%clk 0:00:13.1]} 25... Kxf6 {[%clk 0:01:00.5]} 26. Qxh6+
{[%clk 0:00:13.1]} 26... Kf7 {[%clk 0:01:01.2]} 27. Qxg5 {[%clk 0:00:09.4]}
27... Qxf2+ {[%clk 0:01:01.4]} 28. Kh1 {[%clk 0:00:10]} 28... f4 {[%clk
0:00:42]} 29. h3 {[%clk 0:00:06.6]} 29... Qd2 {[%clk 0:00:35.2]} 30. Rf1 {[%clk
0:00:06.2]} 30... Be3 {[%clk 0:00:35.6]} 31. Qf5+ {[%clk 0:00:06.4]} 31... Ke7
{[%clk 0:00:34.9]} 32. Rb1 {[%clk 0:00:03.9]} 32... Kd6 {[%clk 0:00:33.3]} 33.
Kh2 {[%clk 0:00:02.5]} 33... Qf2 {[%clk 0:00:23.2]} 34. Qg6+ {[%clk 0:00:03.4]}
34... Kc5 {[%clk 0:00:21.9]} 35. Rb3 {[%clk 0:00:03.5]} 35... Qg1# {[%clk
0:00:21.1]} 0-1